fUSD/lending_fUSD_20240404
["ID","MTS","AMOUNT","RATE_DAILY","PERIOD"]
[321479301,1712226066774,1000.0,0.00029,120]
[321479302,1712226075416,150.0,0.00029,120]
[321479303,1712226154547,25000.0,0.00029,10]
[321479305,1712226359098,-400.50013048,0.00024194,2]
[321479307,1712226426089,-443.8458498,0.00024194,2]
[321479308,1712226426111,-759.71,0.00024195,2]
[321479309,1712226426132,-1443.63359622,0.0002468,2]
[321479310,1712226426153,-348.88820265,0.0002488,2]
[321479311,1712226547277,800.0,0.00029,10]
[321479312,1712226548920,800.0,0.00029,10]
[321479313,1712226550670,800.0,0.00029,10]
[321479314,1712226588511,25000.0,0.00029,10]
[321479315,1712226599357,25000.0,0.00029,10]
[321479316,1712226605898,25000.0,0.00029,10]
[321479319,1712226632359,-844.34598028,0.00024093,2]
[321479320,1712226632369,-49.6275941,0.00024094,2]
[321479321,1712226632443,-533.5463059,0.00024094,2]
[321479322,1712226632452,-350.0,0.000245,2]
[321479323,1712226632461,-1000.0,0.00024577,2]
[321479324,1712226632470,-2387.66201635,0.00024655,2]
[321479325,1712226632586,-500.71354731,0.00024655,2]
[321479326,1712226632598,-224.25443634,0.00024655,2]
[321479327,1712226632607,-4346.06417913,0.000247,2]
[321479328,1712226632620,-933.32764814,0.0002488,2]
[321479402,1712226638395,-66.67235186,0.0002488,2]
[321479403,1712226638405,-191.72764814,0.0002488,2]
[321479404,1712226638508,-907.87201028,0.0002488,2]
[321479406,1712226640608,-1400.40034158,0.0002488,2]
[321479407,1712226640619,-6009.56435525,0.0002489,2]
[321479408,1712226640629,-159.53306256,0.0002489,2]
[321479409,1712226640641,-303.49585617,0.0002489,2]
[321479410,1712226640651,-1944.47562924,0.0002489,2]
[321479411,1712226640660,-359.23095586,0.0002489,2]
[321479412,1712226640672,-159.53306254,0.00024893,2]
[321479413,1712226640681,-159.53306254,0.00024895,2]
[321479414,1712226640691,-159.53306254,0.00024898,2]
[321479415,1712226640702,-42814.49038306,0.00024898,2]
[321479416,1712226640712,-1053.37363447,0.00024899,2]
[321479417,1712226640722,-11857.11964479,0.000249,2]
[321479418,1712226640738,-1468.06024433,0.000249,2]
[321479442,1712226643588,-6537.36870578,0.000249,2]
[321479443,1712226643597,-988.83269013,0.000249,2]
[321479444,1712226643608,-417.9718,0.000249,2]
[321479445,1712226643619,-159.53306254,0.000249,2]
[321479446,1712226643629,-150.99,0.000249,2]
[321479447,1712226643643,-663.68,0.000249,2]
[321479448,1712226643652,-800.0,0.000249,2]
[321479449,1712226643662,-800.0,0.000249,2]
[321479450,1712226643672,-800.0,0.000249,2]
[321479451,1712226643682,-800.0,0.000249,2]
[321479452,1712226643692,-800.0,0.000249,2]
[321479453,1712226643701,-157.15500887,0.000249,2]
[321479454,1712226643711,-1083.12679826,0.000249,2]
[321479455,1712226643720,-705.6709,0.000249,2]
[321479456,1712226643730,-180.03213614,0.000249,2]
[321479457,1712226643740,-429.91,0.00024961,2]
[321479458,1712226643749,-156.8,0.0002497,2]
[321479459,1712226643758,-156.8,0.0002497,2]
[321479460,1712226643767,-155.0,0.00024979,2]
[321479461,1712226643776,-1006102.59773437,0.0002498,2]
[321479462,1712226643808,-7386.54947546,0.0002498,2]
[321479464,1712226643823,-7986.75202361,0.0002498,2]
[321479465,1712226643832,-156.8,0.0002499,2]
[321479466,1712226643841,-156.8,0.0002499,2]
[321479467,1712226643852,-156.8,0.0002499,2]
[321479468,1712226643863,-1185984.11414576,0.00025,2]
[321479470,1712226643894,-1749.84900888,0.00025,2]
[321479479,1712226646401,-379.80356877,0.00024979,2]
[321479480,1712226646411,-3261.76450107,0.00025,2]
[321479540,1712226871689,25000.0,0.00029,10]
[321479541,1712226897812,25000.0,0.00029,10]
[321479542,1712226931148,25000.0,0.00029,10]
[321479543,1712226960768,750.0,0.00023,3]
[321479544,1712226967795,25000.0,0.00029,10]
[321479545,1712226992022,200.0,0.000211,2]
[321479546,1712227122953,25000.0,0.00029,10]
[321479547,1712227216499,2206.8866,0.00025014,10]
[321479548,1712227296896,25000.0,0.00029,10]
[321479549,1712227363284,25000.0,0.00029,10]
[321479550,1712227381889,1997.27242032,0.00029,10]
[321479551,1712227406074,25000.0,0.00029,10]
[321479552,1712227749201,-524.78067754,0.00021583,2]
[321479553,1712227749224,-286.37026616,0.00021584,2]
[321479554,1712227765143,-327.37,0.00021584,2]
[321479555,1712227771112,-150.41187285,0.00021584,2]
[321479559,1712227831583,-500.0,0.00023325,2]
[321479560,1712227831592,-361.39,0.00023326,2]
[321479561,1712227831602,-3593.04,0.00023337,2]
[321479562,1712227831612,-358.25,0.00023342,2]
[321479563,1712227831622,-581.85,0.00023342,2]
[321479564,1712227831632,-255.54,0.00023346,2]
[321479565,1712227831641,-800.0,0.00023351,2]
[321479566,1712227831652,-200.0,0.00023382,2]
[321479567,1712227831661,-500.0,0.00023418,2]
[321479568,1712227831672,-1482.73,0.00023449,2]
[321479569,1712227831681,-1344.3792328,0.00023464,2]
[321479570,1712227831702,-506.09510571,0.00023464,2]
[321479571,1712227831713,-514.33101265,0.00023464,2]
[321479572,1712227831726,-2992.4019571,0.00023464,2]
[321479573,1712227831737,-9204.24359989,0.00023464,2]
[321479574,1712227831767,1000.0,0.00029,10]
[321479575,1712227831819,-1334.24484287,0.00023464,2]
[321479576,1712227831832,-495.48279711,0.00023464,2]
[321479577,1712227831845,-379.39881895,0.00023464,2]
[321479578,1712227831857,-629.26449483,0.00023464,2]
[321479579,1712227831882,-1358.74142889,0.00023464,2]
[321479580,1712227831894,-593.3569359,0.00023464,2]
[321479581,1712227831917,-508.47863172,0.00023464,2]
[321479591,1712227837500,-730.7,0.00021439,2]
[321479592,1712227837510,-1045.34962931,0.00023464,2]
[321479593,1712227837522,-785.92464769,0.00023464,2]
[321479594,1712227837534,-669.42707453,0.00023464,2]
[321479595,1712227837546,-1538.87979005,0.00023464,2]
[321479596,1712227837556,-499.99,0.00023464,2]
[321479597,1712227837566,-150.0,0.00023507,2]
[321479598,1712227837575,-150.0,0.00023523,2]
[321479599,1712227837586,-382.97,0.00023523,2]
[321479600,1712227837596,-1137.19099759,0.00023552,2]
[321479601,1712227837609,-3532.94900241,0.00023552,2]
[321479602,1712227837618,-1377.44,0.00023564,2]
[321479603,1712227837628,-522.38576751,0.00023662,2]
[321479604,1712227837640,-955.15423249,0.00023662,2]
[321479605,1712227837649,-730.7,0.00023703,2]
[321479606,1712227837661,-250.0,0.00023772,2]
[321479607,1712227837670,-151.05,0.00023839,2]
[321479608,1712227837680,-200.0,0.00023869,2]
[321479609,1712227837689,-151.05,0.00023905,2]
[321479610,1712227837698,-236.6,0.00023913,2]
[321479611,1712227837707,-999.99,0.00023913,2]
[321479612,1712227837717,-167.9,0.00023944,2]
[321479613,1712227837726,-5711.0990236,0.00023969,2]
[321479614,1712227837738,-1017.0509764,0.00023969,2]
[321479615,1712227837748,-151.05,0.0002397,2]
[321479616,1712227837758,-3338.68978844,0.00023981,2]
[321479617,1712227837778,-1345.81534778,0.00023981,2]
[321479618,1712227837801,-444.11719502,0.00023981,2]
[321479627,1712227840515,-645.82766876,0.00023981,2]
[321479628,1712227840526,-383.59,0.00024021,2]
[321479629,1712227840535,-499.99,0.00024021,2]
[321479630,1712227840545,-150.99,0.00024021,2]
[321479631,1712227840554,-151.05,0.00024035,2]
[321479632,1712227840564,-151.05,0.00024101,2]
[321479633,1712227840573,-151.05,0.00024166,2]
[321479634,1712227840584,-151.05,0.00024232,2]
[321479635,1712227840594,-151.05,0.00024297,2]
[321479636,1712227840603,-151.05,0.00024362,2]
[321479637,1712227840613,-151.05,0.00024428,2]
[321479638,1712227840622,-151.05,0.00024493,2]
[321479639,1712227840631,-151.05,0.00024558,2]
[321479640,1712227840642,-151.05,0.00024624,2]
[321479641,1712227840651,-151.05,0.00024689,2]
[321479642,1712227840661,-151.05,0.00024755,2]
[321479643,1712227840671,-167.46,0.00024784,2]
[321479644,1712227840680,-151.05,0.0002482,2]
[321479645,1712227840689,-151.05,0.00024885,2]
[321479646,1712227840698,-372.46606109,0.00024897,2]
[321479647,1712227840707,-419.30948471,0.00024897,2]
[321479648,1712227840718,-303.2639032,0.00024897,2]
[321479649,1712227840727,-362.32102287,0.00024898,2]
[321479650,1712227840736,-373.85072569,0.00024899,2]
[321479651,1712227840746,-1952.935,0.000249,2]
[321479652,1712227840756,-906.42996598,0.000249,2]
[321479653,1712227840766,-3352.11790074,0.000249,2]
[321479654,1712227840776,-157.15500887,0.000249,2]
[321479655,1712227840785,-180.03213614,0.000249,2]
[321479656,1712227840794,-722.08453218,0.000249,2]
[321479657,1712227840804,-151.05,0.00024951,2]
[321479658,1712227840813,-11101.0645996,0.0002499,2]
[321479659,1712227840823,-157.05196726,0.00024998,2]
[321479660,1712227840833,-278.48434964,0.00024998,2]
[321479661,1712227840843,-13960.22732465,0.00024999,2]
[321479662,1712227840852,-277.84184082,0.00024999,2]
[321479663,1712227840862,-1106.99942413,0.00024999,2]
[321479664,1712227840871,-1292.4357079,0.00024999,2]
[321479665,1712227840880,-12225.57271257,0.00025,3]
[321479666,1712227840911,-25833.20787041,0.00025,3]
[321479669,1712227840933,-1822.02589099,0.00025,3]
[321479671,1712227840944,-1914.41247,0.00025,3]
[321479675,1712227840975,-3416.90298528,0.00025,3]
[321479844,1712227842594,-293184.48711853,0.00025,3]
[321479853,1712227842670,-6623.3202,0.00025,3]
[321479869,1712227842817,-2331.97834924,0.00025,3]
[321479872,1712227842829,-2124.90820878,0.00025,3]
[321479874,1712227842841,-1303.14838519,0.00025,3]
[321479881,1712227842897,-294.14994472,0.00025,3]
[321479884,1712227842922,-28458.75937725,0.00025,3]
[321479887,1712227842933,-293.30521316,0.00025,3]
[321479889,1712227842948,-2650.43054269,0.00025,3]
[321480181,1712227845753,-2028.5745706,0.00023893,2]
[321480184,1712227845767,-1019.7054294,0.00023893,2]
[321480186,1712227845776,-15886.90581263,0.00025,3]
[321480279,1712227858818,156.03890616,0.00019998,2]
[321480280,1712227916618,25000.0,0.00029,10]
[321480281,1712227953271,25000.0,0.00029,10]
[321480282,1712227995742,25000.0,0.00029,10]
[321480283,1712228034681,25000.0,0.00029,10]
[321480294,1712228200611,-155.0,0.00022407,2]
[321480295,1712228200637,-158.79662838,0.00022408,2]
[321480296,1712228200662,-155.0,0.00023123,2]
[321480297,1712228200687,-219.00197946,0.00023124,2]
[321480298,1712228200713,-3072.4557778,0.00023223,2]
[321480299,1712228200738,-150.0,0.00023224,2]
[321480300,1712228200762,-150.0,0.00023224,2]
[321480301,1712228200786,-16573.8037,0.00023225,2]
[321480302,1712228200812,-268.83,0.00023818,2]
[321480303,1712228200837,-360.0,0.00023869,2]
[321480304,1712228200862,-200.0,0.00023896,2]
[321480305,1712228200887,-23900.0,0.00023975,2]
[321480306,1712228200912,-177.37,0.00024429,2]
[321480307,1712228200936,-1459.1104694,0.00024471,2]
[321480308,1712228200962,-1459.1104694,0.00024678,2]
[321480309,1712228200989,-166.81148,0.0002475,2]
[321480310,1712228201014,-417.9718,0.000248,2]
[321480311,1712228201039,-2628.7278,0.000248,2]
[321480312,1712228201065,-7840.23320208,0.000248,2]
[321480313,1712228201092,-7840.23320204,0.00024812,2]
[321480314,1712228201463,-7840.23320204,0.00024824,2]
[321480315,1712228201490,-7840.23320204,0.00024836,2]
[321480316,1712228201515,-7840.23320204,0.00024848,2]
[321480317,1712228201540,-7840.23320204,0.00024859,2]
[321480318,1712228201566,-7840.23320204,0.00024871,2]
[321480319,1712228201592,-7840.23320204,0.00024883,2]
[321480320,1712228201619,-7840.23320204,0.00024895,2]
[321480321,1712228201643,-155.0,0.00024898,2]
[321480322,1712228201669,-203.55148382,0.00024898,2]
[321480323,1712228201696,-3766.91886495,0.00024898,2]
[321480324,1712228201721,-500.0,0.00024899,2]
[321480325,1712228201747,-250.52233814,0.00024899,2]
[321480326,1712228201773,-4742.24367415,0.00024899,2]
[321480327,1712228201798,-1580.5575,0.000249,2]
[321480328,1712228201824,-129724.9137,0.000249,2]
[321480329,1712228201849,-3144.12142798,0.000249,2]
[321480330,1712228201875,-345.95658809,0.000249,2]
[321480331,1712228201901,-237.00120965,0.000249,2]
[321480332,1712228201926,-237.00120965,0.000249,2]
[321480333,1712228201953,-237.00120965,0.000249,2]
[321480334,1712228201979,-237.00120965,0.000249,2]
[321480335,1712228202005,-237.00120965,0.000249,2]
[321480336,1712228202031,-237.00120965,0.000249,2]
[321480337,1712228202062,-237.00120965,0.000249,2]
[321480338,1712228202087,-237.00120965,0.000249,2]
[321480339,1712228202114,-237.00120965,0.000249,2]
[321480340,1712228202139,-237.00120965,0.000249,2]
[321480341,1712228202167,-237.00120965,0.000249,2]
[321480342,1712228202193,-237.00120965,0.000249,2]
[321480343,1712228202220,-237.00120965,0.000249,2]
[321480344,1712228202246,-237.00120965,0.000249,2]
[321480345,1712228202271,-237.00120965,0.000249,2]
[321480346,1712228202296,-237.00120965,0.000249,2]
[321480347,1712228202321,-237.00120965,0.000249,2]
[321480348,1712228202346,-237.00120965,0.000249,2]
[321480349,1712228202370,-237.00120965,0.000249,2]
[321480350,1712228202394,-237.00120965,0.000249,2]
[321480351,1712228202419,-237.00120965,0.000249,2]
[321480352,1712228202446,-237.00120965,0.000249,2]
[321480353,1712228202472,-237.00120965,0.000249,2]
[321480354,1712228202499,-237.00120965,0.000249,2]
[321480355,1712228202524,-237.00120965,0.000249,2]
[321480356,1712228202549,-237.00120965,0.000249,2]
[321480357,1712228202576,-237.00120965,0.000249,2]
[321480358,1712228202604,-237.00120965,0.000249,2]
[321480359,1712228202630,-237.00120965,0.000249,2]
[321480360,1712228202655,-237.00120965,0.000249,2]
[321480361,1712228202681,-237.00120965,0.000249,2]
[321480362,1712228202707,-237.00120965,0.000249,2]
[321480363,1712228202732,-237.00120965,0.000249,2]
[321480364,1712228202756,-237.00120965,0.000249,2]
[321480365,1712228202782,-237.00120965,0.000249,2]
[321480366,1712228202809,-237.00120965,0.000249,2]
[321480367,1712228202836,-237.00120965,0.000249,2]
[321480368,1712228202865,-237.00120965,0.000249,2]
[321480369,1712228202973,-237.00120965,0.000249,2]
[321480370,1712228203002,-237.00120965,0.000249,2]
[321480371,1712228203028,-237.00120965,0.000249,2]
[321480372,1712228203053,-237.00120965,0.000249,2]
[321480373,1712228203078,-237.00120965,0.000249,2]
[321480374,1712228203104,-237.00120965,0.000249,2]
[321480375,1712228203130,-237.00120965,0.000249,2]
[321480376,1712228203154,-237.00120965,0.000249,2]
[321480377,1712228203178,-237.00120965,0.000249,2]
[321480378,1712228203205,-237.00120965,0.000249,2]
[321480379,1712228203235,-237.00120965,0.000249,2]
[321480380,1712228203261,-237.00120965,0.000249,2]
[321480381,1712228203287,-4832.05848699,0.000249,2]
[321480382,1712228203312,-540.09640842,0.000249,2]
[321480383,1712228203337,-11059.8928706,0.000249,2]
[321480384,1712228203364,-7840.23320204,0.00024907,2]
[321480385,1712228203390,-4742.2436741,0.00024914,2]
[321480386,1712228203415,-345.95658809,0.0002492,2]
[321480387,1712228203440,-4742.2436741,0.0002493,2]
[321480388,1712228203466,-345.95658809,0.00024939,2]
[321480389,1712228203491,-4742.2436741,0.00024945,2]
[321480390,1712228203516,-345.95658809,0.00024959,2]
[321480391,1712228203541,-4742.2436741,0.00024961,2]
[321480392,1712228203566,-4217.35401839,0.0002497,2]
[321480393,1712228203590,-4742.2436741,0.00024976,2]
[321480394,1712228203616,-345.95658809,0.00024979,2]
[321480395,1712228203641,-73321.1266216,0.0002499,2]
[321480396,1712228203667,-4742.2436741,0.00024992,2]
[321480397,1712228203695,-373.25788922,0.00024996,2]
[321480398,1712228203725,-282.60423576,0.00024997,2]
[321480399,1712228203748,-388.97370236,0.00024998,2]
[321480400,1712228203772,-2258.59066381,0.00024998,2]
[321480401,1712228203797,-201.8400105,0.00024998,2]
[321480402,1712228203821,-155.2401728,0.00024998,2]
[321480403,1712228203847,-136890.63455117,0.00024998,2]
[321480404,1712228203873,-345.95658809,0.00024999,2]
[321480405,1712228203896,-582.63152324,0.00024999,2]
[321480406,1712228203921,-9253.7008142,0.00024999,2]
[321480407,1712228203945,-843.46695987,0.00024999,2]
[321480408,1712228203970,-175.8339671,0.00024999,2]
[321480409,1712228203993,-599.35051099,0.00024999,2]
[321480410,1712228204019,-156.22455142,0.00024999,2]
[321480411,1712228204044,-481.18964652,0.00024999,2]
[321480412,1712228204069,-374.33033164,0.00024999,2]
[321480413,1712228204096,-260.47354147,0.00024999,2]
[321480414,1712228204123,-969.46683418,0.00024999,2]
[321480415,1712228204149,-150.99,0.00024999,2]
[321480416,1712228204175,-169.70772477,0.00024999,2]
[321480417,1712228204203,-233.7031591,0.00024999,2]
[321480418,1712228204231,-668302.40581928,0.00025,3]
[321480419,1712228204255,-155.28881872,0.00025,2]
[321480420,1712228204280,-1766248.15299632,0.00025,2]
[321480421,1712228246619,25000.0,0.00029,10]
[321480422,1712228321054,25000.0,0.00029,10]
[321480423,1712228357070,25000.0,0.00029,10]
[321480424,1712228416953,9141.6813118,0.00029,10]
[321480425,1712228419646,170.67,0.00019247,2]
[321480426,1712228441073,364.69227916,0.00019247,2]
[321480427,1712228447625,295.97563823,0.00019247,2]
[321480428,1712228463024,366.05965197,0.00019247,2]
[321480429,1712228463617,245.19562641,0.00019247,2]
[321480430,1712228756098,-167.9,0.00023976,2]
[321480431,1712228756480,-298.54,0.00024012,2]
[321480432,1712228756514,-389.92773381,0.00024026,2]
[321480433,1712228756534,-712.0,0.00024027,2]
[321480434,1712228756554,-178.52,0.00024044,2]
[321480435,1712228756573,-1897.66345363,0.00024063,2]
[321480436,1712228768858,750.0,0.00023,3]
[321480439,1712228847153,-315.86014438,0.00022108,2]
[321480440,1712228966112,-349.50015516,0.00022108,2]
[321480455,1712229032106,-60.90970046,0.00022108,2]
[321480457,1712229032115,-153.19616599,0.00023779,2]
[321480458,1712229032125,-194.64737336,0.00023857,2]
[321480459,1712229032136,-14666.58262664,0.00023857,2]
[321480460,1712229032146,-1455.19,0.00023879,2]
[321480461,1712229032155,-21489.69792277,0.00023964,2]
[321480462,1712229032195,-547.43728168,0.00023964,2]
[321480463,1712229032207,-1862.86479555,0.00023964,2]
[321480464,1712229032217,-1046.96,0.00024004,2]
[321480465,1712229032227,-400.0,0.000242,8]
[321480466,1712229032237,-800.0,0.000243,8]
[321480467,1712229032247,-726.27,0.00024372,2]
[321480468,1712229032257,-1200.0,0.000244,8]
[321480469,1712229032267,-3273.4137,0.00024463,2]
[321480470,1712229032278,-210.3179,0.00024463,2]
[321480471,1712229032288,-1600.0,0.000245,8]
[321480472,1712229032300,-1462.45734392,0.00024577,2]
[321480473,1712229032310,-2100.0,0.000246,8]
[321480474,1712229032320,-1792.5696,0.000247,2]
[321480475,1712229032330,-400.0,0.000247,9]
[321480476,1712229032339,-1462.45734392,0.00024794,2]
[321480477,1712229032352,-2159.75657783,0.00024799,2]
[321480478,1712229032362,-61853.7727,0.000248,2]
[321480479,1712229032371,-663.68,0.000248,2]
[321480480,1712229032381,-400.0,0.000248,9]
[321480481,1712229032391,-315.85419358,0.0002489,2]
[321480482,1712229032401,-301.08288737,0.00024899,2]
[321480483,1712229032410,-9589.6215,0.000249,2]
[321480484,1712229032419,-1000.0,0.000249,2]
[321480485,1712229032429,-996.78387167,0.000249,2]
[321480486,1712229032439,-182.91282882,0.000249,2]
[321480487,1712229032448,-159.53306254,0.000249,2]
[321480488,1712229032457,-705.6709,0.000249,2]
[321480489,1712229032467,-499.99,0.000249,2]
[321480490,1712229032476,-400.0,0.000249,9]
[321480491,1712229032486,-432.23966829,0.000249,2]
[321480492,1712229032495,-198.35447971,0.000249,2]
[321480493,1712229032505,-1422.67310223,0.000249,2]
[321480494,1712229032514,-2197.24144358,0.0002497,2]
[321480495,1712229032523,-298.77,0.0002499,2]
[321480496,1712229032532,-301.06938818,0.0002499,2]
[321480497,1712229032542,-298.77,0.0002499,2]
[321480498,1712229032551,-298.77,0.0002499,2]
[321480499,1712229032560,-298.77,0.0002499,2]
[321480500,1712229032569,-298.77,0.0002499,2]
[321480501,1712229032578,-298.77,0.0002499,2]
[321480502,1712229032588,-298.77,0.0002499,2]
[321480503,1712229032598,-298.77,0.0002499,2]
[321480504,1712229032608,-301.06938818,0.0002499,2]
[321480505,1712229032617,-301.06938818,0.0002499,2]
[321480506,1712229032626,-312.4020961,0.00024998,2]
[321480507,1712229032635,-844.34598028,0.00024998,2]
[321480508,1712229032644,-427.95988549,0.00024998,2]
[321480509,1712229032653,-240.50424977,0.00024998,2]
[321480510,1712229032662,-525.59160921,0.00024998,2]
[321480511,1712229032671,-157.27382018,0.00024998,2]
[321480512,1712229032681,-214.80095522,0.00024998,2]
[321480513,1712229032690,-1066.35028848,0.00024999,2]
[321480514,1712229032699,-702.97319929,0.00024999,2]
[321480515,1712229032708,-1148.0,0.00025,2]
[321480516,1712229032716,-358715.18168983,0.00025,3]
[321480517,1712229032745,-330.69382779,0.00025,3]
[321480518,1712229032756,-2464.76794777,0.00025,3]
[321480519,1712229032767,-212523.08573227,0.00025,3]
[321480520,1712229033483,17552.94753657,0.00029,120]
[321480521,1712229033507,145291.05246343,0.00029,120]
[321480541,1712229037777,-450.66010641,0.000249,2]
[321480542,1712229037787,-199.18,0.0002499,2]
[321480543,1712229037797,-199.18,0.0002499,2]
[321480544,1712229037806,-199.18,0.0002499,2]
[321480545,1712229037816,-639.06654481,0.00024999,2]
[321480546,1712229037825,-19024.26790851,0.00025,3]
[321480547,1712229037835,-886588.24919189,0.00025,2]
[321480548,1712229037844,-155.0,0.00025,2]
[321480549,1712229037854,-482.81,0.00025,2]
[321480550,1712229037865,-2601.01958159,0.00025,2]
[321480551,1712229037875,-467.85,0.00025,2]
[321480552,1712229037884,-497.88,0.00025,2]
[321480553,1712229037894,-1941629.33979295,0.00025,2]
[321480554,1712229037903,-9044642.23198544,0.00025,2]
[321480555,1712229037962,-475.5467042,0.00025,2]
[321480556,1712229037973,-14362.39675464,0.00025,2]
[321480593,1712229039838,-476.2010242,0.00025,2]
[321480594,1712229040069,-712.48494072,0.00025,2]
[321480679,1712229042859,-7500.0,0.000249,2]
[321480680,1712229042869,-595.4174114,0.00025,2]
[321480683,1712229044187,-436.5825886,0.00025,2]
[321480684,1712229044196,-254012.72881422,0.00025,2]
[321480685,1712229044210,-157811.2573654,0.00025,2]
[321480701,1712229045785,-650253.82640789,0.00025,2]
[321480702,1712229045843,-750.52233814,0.00025,2]
[321480703,1712229046066,-638.07929854,0.00025,2]
[321480753,1712229059321,949.37404731,0.00021003,2]
[321480754,1712229060930,362.42414368,0.00019998,2]
[321480755,1712229063867,2673.2611425,0.00016581,2]
[321480756,1712229744590,155.0,0.00019547,2]
[321480757,1712229750829,155.54404609,0.00019547,2]
[321480762,1712229845931,-235.95800933,0.00021708,2]
[321480763,1712229845952,-155.0,0.00021709,2]
[321480764,1712229845971,-400.50013048,0.00021716,2]
[321480765,1712229845992,-3008.04186019,0.00021717,2]
[321480769,1712229952113,-724.94255773,0.00021212,2]
[321480770,1712229974624,-229.29744227,0.00021212,2]
[321480771,1712229974648,-1057.25731765,0.00021715,2]
[321480772,1712229974669,-443.8458498,0.00021716,2]
[321480773,1712229974691,-419.59939028,0.00021716,2]
[321480774,1712230037115,-150.0,0.00021211,2]
[321480775,1712230037136,-2846.08092434,0.00021212,2]
[321480785,1712230113322,-11919.53773677,0.00021212,2]
[321480786,1712230113344,-362.35121141,0.00021715,2]
[321480787,1712230113366,-3935.42850006,0.00021716,2]
[321480788,1712230113393,-892.96192,0.00021718,2]
[321480789,1712230113419,-255.17859119,0.00022108,2]
[321480790,1712230113441,-579.24720401,0.00022497,2]
[321480791,1712230113465,-183.04581568,0.00022498,2]
[321480792,1712230113489,-1382.78,0.00023042,2]
[321480793,1712230113512,-500.0,0.00023115,2]
[321480794,1712230113534,-3092.88,0.00023152,2]
[321480795,1712230113555,-3374.75,0.00023159,2]
[321480796,1712230113578,-500.0,0.00023159,2]
[321480797,1712230113600,-150.99,0.00023159,2]
[321480798,1712230113621,-150.0,0.00023168,2]
[321480799,1712230113643,-536.81,0.00023182,2]
[321480800,1712230113666,-265.88,0.00023199,2]
[321480801,1712230113687,-1855.09,0.00023206,2]
[321480802,1712230113709,-200.0,0.00023216,2]
[321480803,1712230113733,-248.78,0.0002326,2]
[321480804,1712230113759,-250.0,0.0002328,2]
[321480805,1712230113779,-213.84,0.00023292,2]
[321480806,1712230113800,-210.0,0.00023332,2]
[321480807,1712230113820,-1234.79,0.00023345,2]
[321480808,1712230113841,-158.38499869,0.00023351,2]
[321480809,1712230113862,-235.05333061,0.00023351,2]
[321480810,1712230113883,-301.6,0.00023352,2]
[321480811,1712230113904,-499.99,0.00023352,2]
[321480812,1712230113925,-569.6,0.00023376,2]
[321480813,1712230113945,-249.86,0.00023377,2]
[321480814,1712230113966,-550.79,0.00023401,2]
[321480815,1712230113986,-249.86,0.00023441,2]
[321480816,1712230114007,-448.99337648,0.00023475,2]
[321480841,1712230231999,-505.24662352,0.00023475,2]
[321480842,1712230232010,-249.86,0.00023505,2]
[321480843,1712230232019,-60.58835424,0.00023531,2]
[321480844,1712230232031,-396.71378068,0.00023531,2]
[321480845,1712230232043,-156.12786508,0.00023531,2]
[321480846,1712230232054,-7383.3911642,0.00023541,2]
[321480847,1712230232066,-857.80460419,0.00023541,2]
[321480848,1712230232078,-470.66422877,0.00023541,2]
[321480849,1712230232091,-1121.04454154,0.00023541,2]
[321480850,1712230232103,-821.59785975,0.00023541,2]
[321480851,1712230232118,-1129.24535294,0.00023541,2]
[321480852,1712230232130,-465.18527596,0.00023541,2]
[321480853,1712230232157,-401.0308625,0.00023541,2]
[321480854,1712230232168,-282.96611015,0.00023541,2]
[321480855,1712230232178,-544.32,0.00023542,2]
[321480856,1712230232187,-249.86,0.0002357,2]
[321480857,1712230232196,-4975.77,0.00023594,2]
[321480858,1712230232207,-249.86,0.00023634,2]
[321480859,1712230232218,-3147.72141419,0.00023653,2]